[Event "Titled Tuesday Blitz October 25 Late 2022"]
[White "Roque Sola, Gisela"]
[Black "Fernandez Siles, Luis"]
[WhiteFideId "5120241"]
[BlackFideId "2209420"]
[WhiteElo "1961"]
[BlackElo "2186"]
[Result "0-1"]
[Round "04"]
[TimeControl "180+1"]
[Date "2022.10.26"]
[WhiteClock "0:00:02"]
[BlackClock "0:00:04"]

1. c4 {[%clk 0:03:00]}  Nf6 {[%clk 0:02:59]} 2. Nc3 {[%clk 0:03:00]}  g6 {[%clk 0:02:58]} 3. Nf3 {[%clk 0:02:59]}  Bg7 {[%clk 0:02:58]} 4. g3 {[%clk 0:02:59]}  O-O {[%clk 0:02:58]} 5. Bg2 {[%clk 0:03:00]}  d6 {[%clk 0:02:58]} 6. O-O {[%clk 0:03:00]}  c6 {[%clk 0:02:54]} 7. Rb1 {[%clk 0:02:58]}  Bf5 {[%clk 0:02:51]} 8. d3 {[%clk 0:02:58]}  Qd7 {[%clk 0:02:51]} 9. Re1 {[%clk 0:02:57]}  Bh3 {[%clk 0:02:51]} 10. Bh1 {[%clk 0:02:57]}  Qf5 {[%clk 0:02:48]} 11. Ng5 {[%clk 0:02:21]}  h6 {[%clk 0:02:32]} 12. Nxh3 {[%clk 0:02:21]}  Qxh3 {[%clk 0:02:33]} 13. Bg2 {[%clk 0:02:21]}  Qh5 {[%clk 0:02:31]} 14. e4 {[%clk 0:02:09]}  Qxd1 {[%clk 0:02:29]} 15. Nxd1 {[%clk 0:02:09]}  Nbd7 {[%clk 0:02:23]} 16. b4 {[%clk 0:02:08]}  e6 {[%clk 0:02:11]} 17. Bb2 {[%clk 0:02:06]}  Rac8 {[%clk 0:02:09]} 18. Ne3 {[%clk 0:02:03]}  Ne5 {[%clk 0:01:58]} 19. Rbd1 {[%clk 0:01:51]}  Nfg4 {[%clk 0:01:55]} 20. Nxg4 {[%clk 0:01:49]}  Nxg4 {[%clk 0:01:55]} 21. Bxg7 {[%clk 0:01:49]}  Kxg7 {[%clk 0:01:56]} 22. h3 {[%clk 0:01:39]}  Nf6 {[%clk 0:01:54]} 23. a4 {[%clk 0:01:33]}  Rfe8 {[%clk 0:01:45]} 24. b5 {[%clk 0:01:29]}  d5 {[%clk 0:01:36]} 25. bxc6 {[%clk 0:01:20]}  bxc6 {[%clk 0:01:32]} 26. cxd5 {[%clk 0:01:08]}  exd5 {[%clk 0:01:24]} 27. exd5 {[%clk 0:01:07]}  Rxe1+ {[%clk 0:01:23]} 28. Rxe1 {[%clk 0:01:07]}  cxd5 {[%clk 0:01:24]} 29. Re7 {[%clk 0:01:01]}  a5 {[%clk 0:01:19]} 30. Ra7 {[%clk 0:00:59]}  Rc5 {[%clk 0:01:14]} 31. Bf1 {[%clk 0:00:43]}  h5 {[%clk 0:00:58]} 32. d4 {[%clk 0:00:43]}  Rc1 {[%clk 0:00:57]} 33. Rxa5 {[%clk 0:00:42]}  Rd1 {[%clk 0:00:58]} 34. Ra7 {[%clk 0:00:36]}  Rxd4 {[%clk 0:00:58]} 35. a5 {[%clk 0:00:36]}  Ra4 {[%clk 0:00:53]} 36. a6 {[%clk 0:00:33]}  Ne4 {[%clk 0:00:49]} 37. Rd7 {[%clk 0:00:25]}  d4 {[%clk 0:00:37]} 38. a7 {[%clk 0:00:24]}  Nc5 {[%clk 0:00:33]} 39. Rc7 {[%clk 0:00:20]}  Ne6 {[%clk 0:00:29]} 40. Rd7 {[%clk 0:00:18]}  Nc5 {[%clk 0:00:28]} 41. Rxd4 {[%clk 0:00:17]}  Rxa7 {[%clk 0:00:28]} 42. Bc4 {[%clk 0:00:16]}  Nd7 {[%clk 0:00:22]} 43. Kg2 {[%clk 0:00:14]}  Ne5 {[%clk 0:00:22]} 44. Rf4 {[%clk 0:00:13]}  Rc7 {[%clk 0:00:21]} 45. Bd5 {[%clk 0:00:12]}  g5 {[%clk 0:00:18]} 46. Ra4 {[%clk 0:00:12]}  f6 {[%clk 0:00:19]} 47. Ra6 {[%clk 0:00:11]}  Rd7 {[%clk 0:00:18]} 48. Be6 {[%clk 0:00:10]}  Re7 {[%clk 0:00:18]} 49. Bf5 {[%clk 0:00:10]}  h4 {[%clk 0:00:17]} 50. gxh4 {[%clk 0:00:10]}  gxh4 {[%clk 0:00:17]} 51. f4 {[%clk 0:00:09]}  Nc4 {[%clk 0:00:16]} 52. Kf3 {[%clk 0:00:10]}  Kf8 {[%clk 0:00:09]} 53. Kg4 {[%clk 0:00:09]}  Ne3+ {[%clk 0:00:06]} 54. Kxh4 {[%clk 0:00:08]}  Nxf5+ {[%clk 0:00:06]} 55. Kg4 {[%clk 0:00:07]}  Ne3+ {[%clk 0:00:07]} 56. Kh5 {[%clk 0:00:08]}  Kg7 {[%clk 0:00:07]} 57. h4 {[%clk 0:00:06]}  Ng2 {[%clk 0:00:07]} 58. Kg4 {[%clk 0:00:05]}  Kf7 {[%clk 0:00:05]} 59. h5 {[%clk 0:00:06]}  Re8 {[%clk 0:00:05]} 60. h6 {[%clk 0:00:05]}  Rg8+ {[%clk 0:00:05]} 61. Kf5 {[%clk 0:00:04]}  Nh4+ {[%clk 0:00:05]} 62. Ke4 {[%clk 0:00:03]}  Rh8 {[%clk 0:00:05]} 63. Ra7+ {[%clk 0:00:03]}  Kg6 {[%clk 0:00:04]} 64. h7 {[%clk 0:00:03]}  Rxh7 {[%clk 0:00:04]} 65. f5+ {[%clk 0:00:02]}  Kh6 {[%clk 0:00:04]} 0-1


[Site "https://www.chess.com"]

[Event "Titled Tuesday Blitz October 25 Late 2022"]
[White "Rosenberg, Evan S"]
[Black "Rostomyan, Mikayel"]
[WhiteFideId "2019299"]
[BlackFideId "13313754"]
[WhiteElo "2370"]
[BlackElo "2018"]
[Result "0-1"]
[Round "04"]
[TimeControl "180+1"]
[Date "2022.10.26"]
[WhiteClock "0:00:49"]
[BlackClock "0:01:38"]

1. d4 {[%clk 0:02:59]}  Nf6 {[%clk 0:02:58]} 2. Nf3 {[%clk 0:03:00]}  c5 {[%clk 0:02:58]} 3. d5 {[%clk 0:03:00]}  b5 {[%clk 0:02:58]} 4. c4 {[%clk 0:02:44]}  Bb7 {[%clk 0:02:52]} 5. Nbd2 {[%clk 0:02:32]}  e6 {[%clk 0:02:45]} 6. e4 {[%clk 0:02:32]}  exd5 {[%clk 0:02:43]} 7. e5 {[%clk 0:02:18]}  Ne4 {[%clk 0:02:39]} 8. cxd5 {[%clk 0:02:18]}  Bxd5 {[%clk 0:02:36]} 9. Nxe4 {[%clk 0:02:18]}  Bxe4 {[%clk 0:02:37]} 10. Ng5 {[%clk 0:01:58]}  Bc6 {[%clk 0:02:29]} 11. Bd3 {[%clk 0:01:51]}  Be7 {[%clk 0:02:12]} 12. Nxh7 {[%clk 0:01:37]}  c4 {[%clk 0:02:09]} 13. Bf5 {[%clk 0:01:29]}  g6 {[%clk 0:01:59]} 14. e6 {[%clk 0:00:49]}  dxe6 {[%clk 0:01:38]} 0-1


[Site "https://www.chess.com"]

[Event "Titled Tuesday Blitz October 25 Late 2022"]
[White "Runets, Ivan"]
[Black "Arabidze, Meri"]
[WhiteFideId "13511564"]
[BlackFideId "13604040"]
[WhiteElo "2076"]
[BlackElo "2403"]
[Result "0-1"]
[Round "04"]
[TimeControl "180+1"]
[Date "2022.10.26"]
[WhiteClock "0:00:07"]
[BlackClock "0:01:32"]

1. d4 {[%clk 0:03:00]}  Nf6 {[%clk 0:02:59]} 2. c4 {[%clk 0:03:00]}  e6 {[%clk 0:02:58]} 3. Nc3 {[%clk 0:03:00]}  Bb4 {[%clk 0:02:59]} 4. e3 {[%clk 0:03:00]}  b6 {[%clk 0:02:56]} 5. Bd3 {[%clk 0:03:00]}  Bb7 {[%clk 0:02:56]} 6. Nf3 {[%clk 0:03:00]}  Ne4 {[%clk 0:02:53]} 7. O-O {[%clk 0:02:43]}  Bxc3 {[%clk 0:02:47]} 8. bxc3 {[%clk 0:02:43]}  f5 {[%clk 0:02:48]} 9. Ne5 {[%clk 0:02:40]}  O-O {[%clk 0:02:44]} 10. f3 {[%clk 0:02:35]}  Nf6 {[%clk 0:02:43]} 11. Be2 {[%clk 0:02:09]}  d6 {[%clk 0:02:43]} 12. Nd3 {[%clk 0:02:09]}  Qe7 {[%clk 0:02:40]} 13. Ba3 {[%clk 0:02:06]}  c5 {[%clk 0:02:39]} 14. Qd2 {[%clk 0:01:59]}  Nc6 {[%clk 0:02:38]} 15. Nf4 {[%clk 0:01:47]}  Na5 {[%clk 0:02:37]} 16. d5 {[%clk 0:01:43]}  e5 {[%clk 0:02:32]} 17. Nh3 {[%clk 0:01:31]}  Ba6 {[%clk 0:02:29]} 18. Bd3 {[%clk 0:01:17]}  Bxc4 {[%clk 0:02:22]} 19. e4 {[%clk 0:01:13]}  f4 {[%clk 0:02:19]} 20. Rab1 {[%clk 0:01:06]}  h6 {[%clk 0:02:14]} 21. Qe2 {[%clk 0:01:01]}  Bxd3 {[%clk 0:02:12]} 22. Qxd3 {[%clk 0:01:02]}  Qd7 {[%clk 0:02:10]} 23. Bc1 {[%clk 0:00:57]}  Qa4 {[%clk 0:02:07]} 24. Rf2 {[%clk 0:00:53]}  Qc4 {[%clk 0:02:02]} 25. Qxc4 {[%clk 0:00:48]}  Nxc4 {[%clk 0:02:01]} 26. g3 {[%clk 0:00:48]}  g5 {[%clk 0:02:00]} 27. gxf4 {[%clk 0:00:48]}  exf4 {[%clk 0:01:59]} 28. Kf1 {[%clk 0:00:45]}  Nd7 {[%clk 0:01:56]} 29. Ng1 {[%clk 0:00:37]}  Nde5 {[%clk 0:01:55]} 30. h4 {[%clk 0:00:35]}  Kf7 {[%clk 0:01:55]} 31. hxg5 {[%clk 0:00:35]}  hxg5 {[%clk 0:01:56]} 32. Rg2 {[%clk 0:00:36]}  Kf6 {[%clk 0:01:53]} 33. Kf2 {[%clk 0:00:27]}  Rh8 {[%clk 0:01:52]} 34. Ne2 {[%clk 0:00:24]}  Rh3 {[%clk 0:01:49]} 35. Ng1 {[%clk 0:00:24]}  Rh1 {[%clk 0:01:49]} 36. a4 {[%clk 0:00:20]}  Rah8 {[%clk 0:01:45]} 37. Ra1 {[%clk 0:00:18]}  R8h2 {[%clk 0:01:34]} 38. Ne2 {[%clk 0:00:07]}  Nd3# {[%clk 0:01:32]} 0-1


[Site "https://www.chess.com"]

[Event "Titled Tuesday Blitz October 25 Late 2022"]
[White "Sadhwani, Raunak"]
[Black "Leschinsky, Gary"]
[WhiteFideId "35093487"]
[BlackFideId "30951321"]
[WhiteElo "2656"]
[BlackElo "1855"]
[Result "1-0"]
[Round "04"]
[TimeControl "180+1"]
[Date "2022.10.26"]
[WhiteClock "0:02:23"]
[BlackClock "0:02:05"]

1. d4 {[%clk 0:03:00]}  d5 {[%clk 0:02:59]} 2. Nc3 {[%clk 0:03:00]}  Nf6 {[%clk 0:02:58]} 3. Bf4 {[%clk 0:03:00]}  c5 {[%clk 0:02:57]} 4. e3 {[%clk 0:02:55]}  cxd4 {[%clk 0:02:55]} 5. exd4 {[%clk 0:02:56]}  a6 {[%clk 0:02:54]} 6. Nf3 {[%clk 0:02:55]}  Bg4 {[%clk 0:02:49]} 7. Be2 {[%clk 0:02:56]}  Nc6 {[%clk 0:02:49]} 8. O-O {[%clk 0:02:55]}  e6 {[%clk 0:02:49]} 9. h3 {[%clk 0:02:48]}  Bh5 {[%clk 0:02:48]} 10. Ne5 {[%clk 0:02:46]}  Bxe2 {[%clk 0:02:47]} 11. Nxe2 {[%clk 0:02:45]}  Bd6 {[%clk 0:02:48]} 12. Nf3 {[%clk 0:02:39]}  Rc8 {[%clk 0:02:42]} 13. c3 {[%clk 0:02:39]}  h6 {[%clk 0:02:39]} 14. Bxd6 {[%clk 0:02:39]}  Qxd6 {[%clk 0:02:40]} 15. Nc1 {[%clk 0:02:40]}  O-O {[%clk 0:02:38]} 16. Nd3 {[%clk 0:02:40]}  b5 {[%clk 0:02:36]} 17. b4 {[%clk 0:02:36]}  Ne4 {[%clk 0:02:34]} 18. Rc1 {[%clk 0:02:37]}  a5 {[%clk 0:02:26]} 19. a3 {[%clk 0:02:37]}  axb4 {[%clk 0:02:24]} 20. axb4 {[%clk 0:02:38]}  Ra8 {[%clk 0:02:24]} 21. Nc5 {[%clk 0:02:38]}  f5 {[%clk 0:02:17]} 22. Qe2 {[%clk 0:02:30]}  Rfb8 {[%clk 0:02:11]} 23. Nd2 {[%clk 0:02:27]}  Ra2 {[%clk 0:02:05]} 24. Ndxe4 {[%clk 0:02:23]} 1-0


[Site "https://www.chess.com"]

[Event "Titled Tuesday Blitz October 25 Late 2022"]
[White "Sailer, Mike"]
[Black "Becerra, Juan David"]
[WhiteFideId "2012901"]
[BlackFideId "4404998"]
[WhiteElo "2109"]
[BlackElo "2278"]
[Result "1-0"]
[Round "04"]
[TimeControl "180+1"]
[Date "2022.10.26"]
[WhiteClock "0:00:22"]
[BlackClock "0:00:02"]

1. d4 {[%clk 0:03:00]}  e6 {[%clk 0:03:00]} 2. Nc3 {[%clk 0:02:59]}  Nf6 {[%clk 0:02:59]} 3. Bf4 {[%clk 0:03:00]}  d5 {[%clk 0:02:56]} 4. Nb5 {[%clk 0:02:56]}  Bd6 {[%clk 0:02:56]} 5. Nxd6+ {[%clk 0:02:55]}  cxd6 {[%clk 0:02:57]} 6. e3 {[%clk 0:02:53]}  Nc6 {[%clk 0:02:56]} 7. c3 {[%clk 0:02:52]}  O-O {[%clk 0:02:57]} 8. Bd3 {[%clk 0:02:52]}  e5 {[%clk 0:02:55]} 9. Bg5 {[%clk 0:02:50]}  h6 {[%clk 0:02:52]} 10. Bh4 {[%clk 0:02:49]}  Re8 {[%clk 0:02:52]} 11. Ne2 {[%clk 0:02:47]}  Bg4 {[%clk 0:02:20]} 12. f3 {[%clk 0:02:42]}  exd4 {[%clk 0:02:01]} 13. fxg4 {[%clk 0:02:26]}  g5 {[%clk 0:02:01]} 14. Bg3 {[%clk 0:02:07]}  dxe3 {[%clk 0:01:54]} 15. h3 {[%clk 0:01:51]}  Ne5 {[%clk 0:01:44]} 16. O-O {[%clk 0:01:49]}  Kg7 {[%clk 0:01:29]} 17. Bf5 {[%clk 0:01:44]}  Qb6 {[%clk 0:01:23]} 18. Rb1 {[%clk 0:01:38]}  Nfd7 {[%clk 0:01:12]} 19. Qxd5 {[%clk 0:01:27]}  Nc5 {[%clk 0:00:54]} 20. b4 {[%clk 0:00:59]}  Na4 {[%clk 0:00:29]} 21. Bc2 {[%clk 0:00:58]}  Nxc3 {[%clk 0:00:26]} 22. Nxc3 {[%clk 0:00:52]}  e2+ {[%clk 0:00:25]} 23. Rf2 {[%clk 0:00:52]}  Nf3+ {[%clk 0:00:20]} 24. Qxf3 {[%clk 0:00:42]}  e1=Q+ {[%clk 0:00:21]} 25. Rxe1 {[%clk 0:00:40]}  Rxe1+ {[%clk 0:00:22]} 26. Kh2 {[%clk 0:00:41]}  Qc7 {[%clk 0:00:22]} 27. Qf6+ {[%clk 0:00:29]}  Kg8 {[%clk 0:00:14]} 28. Nd5 {[%clk 0:00:29]}  Qc4 {[%clk 0:00:02]} 29. Qxf7+ {[%clk 0:00:22]} 1-0


[Site "https://www.chess.com"]

[Event "Titled Tuesday Blitz October 25 Late 2022"]
[White "Schuster, Karsten"]
[Black "Butolo, Alexandru-Mircea"]
[WhiteFideId "4611071"]
[BlackFideId "1261649"]
[WhiteElo "2294"]
[BlackElo "1897"]
[Result "1-0"]
[Round "04"]
[TimeControl "180+1"]
[Date "2022.10.26"]
[WhiteClock "0:02:26"]
[BlackClock "0:01:10"]

1. d4 {[%clk 0:03:00]}  Nf6 {[%clk 0:02:58]} 2. c4 {[%clk 0:03:00]}  e6 {[%clk 0:02:58]} 3. Nc3 {[%clk 0:03:01]}  Bb4 {[%clk 0:02:57]} 4. Qc2 {[%clk 0:03:01]}  d5 {[%clk 0:02:56]} 5. cxd5 {[%clk 0:03:01]}  exd5 {[%clk 0:02:56]} 6. Bg5 {[%clk 0:03:01]}  c5 {[%clk 0:02:55]} 7. Nf3 {[%clk 0:03:00]}  Nc6 {[%clk 0:02:52]} 8. Rd1 {[%clk 0:03:00]}  h6 {[%clk 0:02:49]} 9. Bxf6 {[%clk 0:02:56]}  Qxf6 {[%clk 0:02:47]} 10. a3 {[%clk 0:02:54]}  Bf5 {[%clk 0:02:42]} 11. Qb3 {[%clk 0:02:50]}  c4 {[%clk 0:02:38]} 12. Qa4 {[%clk 0:02:49]}  Bxc3+ {[%clk 0:02:37]} 13. bxc3 {[%clk 0:02:49]}  O-O {[%clk 0:02:32]} 14. e3 {[%clk 0:02:49]}  Qg6 {[%clk 0:02:30]} 15. Nh4 {[%clk 0:02:45]}  Qg4 {[%clk 0:02:17]} 16. Nxf5 {[%clk 0:02:45]}  Qxf5 {[%clk 0:02:10]} 17. Be2 {[%clk 0:02:45]}  a6 {[%clk 0:02:01]} 18. Rc1 {[%clk 0:02:39]}  b5 {[%clk 0:02:00]} 19. Qd1 {[%clk 0:02:39]}  Qg6 {[%clk 0:01:54]} 20. O-O {[%clk 0:02:38]}  Ne7 {[%clk 0:01:39]} 21. Bf3 {[%clk 0:02:38]}  Qd6 {[%clk 0:01:33]} 22. e4 {[%clk 0:02:34]}  Qxa3 {[%clk 0:01:24]} 23. exd5 {[%clk 0:02:32]}  Qd6 {[%clk 0:01:24]} 24. Re1 {[%clk 0:02:30]}  Nxd5 {[%clk 0:01:23]} 25. Re5 {[%clk 0:02:30]}  Nf4 {[%clk 0:01:14]} 26. Bxa8 {[%clk 0:02:27]}  Rxa8 {[%clk 0:01:11]} 27. Qf3 {[%clk 0:02:27]}  Nd3 {[%clk 0:01:10]} 28. Qxa8+ {[%clk 0:02:27]}  Kh7 {[%clk 0:01:10]} 29. Qe4+ {[%clk 0:02:26]} 1-0


[Site "https://www.chess.com"]

[Event "Titled Tuesday Blitz October 25 Late 2022"]
[White "Sibilio, Mario"]
[Black "Sernecki, Franciszek"]
[WhiteFideId "800422"]
[BlackFideId "1169297"]
[WhiteElo "2296"]
[BlackElo "2209"]
[Result "1-0"]
[Round "04"]
[TimeControl "180+1"]
[Date "2022.10.26"]
[WhiteClock "0:01:04"]
[BlackClock "0:02:13"]

1. Nf3 {[%clk 0:02:54]}  c5 {[%clk 0:02:59]} 2. e4 {[%clk 0:02:53]}  e6 {[%clk 0:02:58]} 3. b3 {[%clk 0:02:40]}  d5 {[%clk 0:02:56]} 4. Bb5+ {[%clk 0:02:35]}  Bd7 {[%clk 0:02:56]} 5. Qe2 {[%clk 0:02:32]}  Bxb5 {[%clk 0:02:54]} 6. Qxb5+ {[%clk 0:02:31]}  Qd7 {[%clk 0:02:55]} 7. Qxd7+ {[%clk 0:02:27]}  Nxd7 {[%clk 0:02:56]} 8. exd5 {[%clk 0:02:27]}  exd5 {[%clk 0:02:57]} 9. d4 {[%clk 0:02:27]}  Ngf6 {[%clk 0:02:58]} 10. O-O {[%clk 0:02:21]}  Be7 {[%clk 0:02:57]} 11. Re1 {[%clk 0:02:19]}  Kd8 {[%clk 0:02:54]} 12. Nc3 {[%clk 0:02:01]}  cxd4 {[%clk 0:02:51]} 13. Nxd4 {[%clk 0:01:59]}  Bb4 {[%clk 0:02:52]} 14. Bd2 {[%clk 0:01:54]}  Bxc3 {[%clk 0:02:52]} 15. Bxc3 {[%clk 0:01:53]}  Ne4 {[%clk 0:02:53]} 16. Bb2 {[%clk 0:01:44]}  Re8 {[%clk 0:02:53]} 17. f3 {[%clk 0:01:42]}  Nec5 {[%clk 0:02:52]} 18. Rxe8+ {[%clk 0:01:37]}  Kxe8 {[%clk 0:02:53]} 19. Re1+ {[%clk 0:01:35]}  Kf8 {[%clk 0:02:49]} 20. Nf5 {[%clk 0:01:28]}  g6 {[%clk 0:02:47]} 21. Nd6 {[%clk 0:01:27]}  b6 {[%clk 0:02:47]} 22. Bc1 {[%clk 0:01:12]}  Rd8 {[%clk 0:02:45]} 23. Bh6+ {[%clk 0:01:10]}  Kg8 {[%clk 0:02:45]} 24. Re7 {[%clk 0:01:07]}  Nd3 {[%clk 0:02:13]} 25. cxd3 {[%clk 0:01:04]} 1-0


[Site "https://www.chess.com"]

[Event "Titled Tuesday Blitz October 25 Late 2022"]
[White "Sivakumar, Shaaketh"]
[Black "Pakleza, Zbigniew"]
[WhiteFideId "30940176"]
[BlackFideId "1119290"]
[WhiteElo "2174"]
[BlackElo "2411"]
[Result "1-0"]
[Round "04"]
[TimeControl "180+1"]
[Date "2022.10.26"]
[WhiteClock "0:00:10"]
[BlackClock "0:00:03"]

1. d4 {[%clk 0:02:58]}  d6 {[%clk 0:02:59]} 2. e4 {[%clk 0:02:56]}  Nf6 {[%clk 0:02:59]} 3. Nc3 {[%clk 0:02:56]}  c6 {[%clk 0:03:00]} 4. Be3 {[%clk 0:02:55]}  Qb6 {[%clk 0:03:00]} 5. Rb1 {[%clk 0:02:49]}  Ng4 {[%clk 0:03:00]} 6. Bc1 {[%clk 0:02:46]}  e5 {[%clk 0:03:00]} 7. Nf3 {[%clk 0:02:39]}  Nd7 {[%clk 0:03:00]} 8. h3 {[%clk 0:02:38]}  Ngf6 {[%clk 0:03:00]} 9. Be3 {[%clk 0:02:38]}  Qc7 {[%clk 0:03:01]} 10. a4 {[%clk 0:02:34]}  a6 {[%clk 0:03:01]} 11. Bc4 {[%clk 0:02:30]}  Be7 {[%clk 0:03:00]} 12. O-O {[%clk 0:02:09]}  O-O {[%clk 0:02:59]} 13. Qe2 {[%clk 0:02:04]}  b5 {[%clk 0:02:58]} 14. Bd3 {[%clk 0:02:01]}  Re8 {[%clk 0:02:49]} 15. Rfe1 {[%clk 0:01:55]}  Bf8 {[%clk 0:02:46]} 16. Qf1 {[%clk 0:01:52]}  Bb7 {[%clk 0:02:35]} 17. Rbd1 {[%clk 0:01:49]}  exd4 {[%clk 0:02:30]} 18. Bxd4 {[%clk 0:01:39]}  b4 {[%clk 0:02:30]} 19. Na2 {[%clk 0:01:38]}  c5 {[%clk 0:02:30]} 20. Bxf6 {[%clk 0:01:36]}  Nxf6 {[%clk 0:02:31]} 21. c3 {[%clk 0:01:29]}  Nxe4 {[%clk 0:01:53]} 22. cxb4 {[%clk 0:01:28]}  cxb4 {[%clk 0:01:54]} 23. Nxb4 {[%clk 0:01:28]}  Nc5 {[%clk 0:01:54]} 24. Bc4 {[%clk 0:01:09]}  Bxf3 {[%clk 0:01:50]} 25. gxf3 {[%clk 0:01:09]}  Qb6 {[%clk 0:01:38]} 26. Nd5 {[%clk 0:00:59]}  Qxb2 {[%clk 0:01:35]} 27. Rxe8 {[%clk 0:00:44]}  Rxe8 {[%clk 0:01:34]} 28. Re1 {[%clk 0:00:45]}  Rxe1 {[%clk 0:01:16]} 29. Qxe1 {[%clk 0:00:46]}  Qe5 {[%clk 0:01:16]} 30. Qd2 {[%clk 0:00:32]}  Nxa4 {[%clk 0:00:58]} 31. Bxa6 {[%clk 0:00:31]}  Nc5 {[%clk 0:00:55]} 32. Bf1 {[%clk 0:00:28]}  Ne6 {[%clk 0:00:48]} 33. f4 {[%clk 0:00:25]}  Qd4 {[%clk 0:00:39]} 34. Qxd4 {[%clk 0:00:19]}  Nxd4 {[%clk 0:00:39]} 35. Kg2 {[%clk 0:00:19]}  g6 {[%clk 0:00:38]} 36. Bc4 {[%clk 0:00:19]}  Kg7 {[%clk 0:00:36]} 37. Kg3 {[%clk 0:00:20]}  f5 {[%clk 0:00:26]} 38. f3 {[%clk 0:00:19]}  Kf7 {[%clk 0:00:19]} 39. Kf2 {[%clk 0:00:17]}  Bh6 {[%clk 0:00:10]} 40. Ke3 {[%clk 0:00:13]}  Nc2+ {[%clk 0:00:10]} 41. Kf2 {[%clk 0:00:12]}  Kf8 {[%clk 0:00:07]} 42. Kg3 {[%clk 0:00:09]}  Bg7 {[%clk 0:00:06]} 43. Kf2 {[%clk 0:00:09]}  Bd4+ {[%clk 0:00:06]} 44. Ke2 {[%clk 0:00:08]}  Bc5 {[%clk 0:00:06]} 45. Bd3 {[%clk 0:00:03]}  Nd4+ {[%clk 0:00:05]} 46. Kf2 {[%clk 0:00:03]}  Kg7 {[%clk 0:00:05]} 47. Kg3 {[%clk 0:00:03]}  Kh6 {[%clk 0:00:05]} 48. Bc4 {[%clk 0:00:03]}  Nc2 {[%clk 0:00:04]} 49. Nf6 {[%clk 0:00:03]}  Kg7 {[%clk 0:00:04]} 50. Nd5 {[%clk 0:00:04]}  Nd4 {[%clk 0:00:03]} 51. Ba2 {[%clk 0:00:04]}  Nc6 {[%clk 0:00:03]} 52. Bc4 {[%clk 0:00:04]}  Na5 {[%clk 0:00:03]} 53. Bd3 {[%clk 0:00:05]}  Kf7 {[%clk 0:00:02]} 54. Nc7 {[%clk 0:00:05]}  Ke7 {[%clk 0:00:02]} 55. Nd5+ {[%clk 0:00:06]}  Ke6 {[%clk 0:00:02]} 56. Nc7+ {[%clk 0:00:05]}  Kd7 {[%clk 0:00:03]} 57. Nd5 {[%clk 0:00:06]}  Kc6 {[%clk 0:00:03]} 58. Ne7+ {[%clk 0:00:07]}  Kb6 {[%clk 0:00:03]} 59. Nd5+ {[%clk 0:00:07]}  Kb7 {[%clk 0:00:04]} 60. Nf6 {[%clk 0:00:08]}  Bd4 {[%clk 0:00:03]} 61. Nxh7 {[%clk 0:00:07]}  Bg7 {[%clk 0:00:02]} 62. Ng5 {[%clk 0:00:07]}  Kc7 {[%clk 0:00:02]} 63. Ne6+ {[%clk 0:00:08]}  Kc6 {[%clk 0:00:02]} 64. Nxg7 {[%clk 0:00:09]}  Kd5 {[%clk 0:00:02]} 65. h4 {[%clk 0:00:09]}  Kd4 {[%clk 0:00:02]} 66. h5 {[%clk 0:00:08]}  gxh5 {[%clk 0:00:01]} 67. Bxf5 {[%clk 0:00:08]}  d5 {[%clk 0:00:01]} 68. Nxh5 {[%clk 0:00:08]}  Nc4 {[%clk 0:00:01]} 69. Bh7 {[%clk 0:00:07]}  Ne3 {[%clk 0:00:01]} 70. Nf6 {[%clk 0:00:05]}  Kc5 {[%clk 0:00:01]} 71. Ng4 {[%clk 0:00:05]}  Nc4 {[%clk 0:00:01]} 72. f5 {[%clk 0:00:06]}  d4 {[%clk 0:00:01]} 73. f6 {[%clk 0:00:06]}  Nd6 {[%clk 0:00:02]} 74. Bg6 {[%clk 0:00:05]}  Kd5 {[%clk 0:00:01]} 75. f7 {[%clk 0:00:05]}  Nxf7 {[%clk 0:00:01]} 76. Bxf7+ {[%clk 0:00:06]}  Kc5 {[%clk 0:00:01]} 77. Nf2 {[%clk 0:00:07]}  Kb4 {[%clk 0:00:01]} 78. Bg6 {[%clk 0:00:08]}  Kc3 {[%clk 0:00:02]} 79. Bd3 {[%clk 0:00:09]}  Kd2 {[%clk 0:00:02]} 80. f4 {[%clk 0:00:09]}  Ke3 {[%clk 0:00:03]} 81. f5 {[%clk 0:00:10]} 1-0


[Site "https://www.chess.com"]

[Event "Titled Tuesday Blitz October 25 Late 2022"]
[White "Srbis, Jurica"]
[Black "Potapova, Margarita"]
[WhiteFideId "14515555"]
[BlackFideId "14126869"]
[WhiteElo "2481"]
[BlackElo "2150"]
[Result "1-0"]
[Round "04"]
[TimeControl "180+1"]
[Date "2022.10.26"]
[WhiteClock "0:00:25"]
[BlackClock "0:00:10"]

1. e4 {[%clk 0:03:00]}  e5 {[%clk 0:02:59]} 2. Nf3 {[%clk 0:03:00]}  Nc6 {[%clk 0:03:00]} 3. Bb5 {[%clk 0:03:00]}  Nf6 {[%clk 0:03:00]} 4. d3 {[%clk 0:02:59]}  Bc5 {[%clk 0:02:59]} 5. c3 {[%clk 0:02:58]}  d5 {[%clk 0:02:59]} 6. Nbd2 {[%clk 0:02:56]}  O-O {[%clk 0:02:59]} 7. O-O {[%clk 0:02:56]}  dxe4 {[%clk 0:02:59]} 8. dxe4 {[%clk 0:02:55]}  Qe7 {[%clk 0:02:59]} 9. h3 {[%clk 0:02:53]}  Nd8 {[%clk 0:02:51]} 10. Qc2 {[%clk 0:02:44]}  c6 {[%clk 0:02:47]} 11. Be2 {[%clk 0:02:44]}  Bd6 {[%clk 0:02:47]} 12. Nc4 {[%clk 0:02:42]}  Bc7 {[%clk 0:02:48]} 13. a4 {[%clk 0:02:40]}  Ne6 {[%clk 0:02:29]} 14. Ncxe5 {[%clk 0:02:37]}  Nc5 {[%clk 0:02:29]} 15. Nc4 {[%clk 0:02:23]}  Qxe4 {[%clk 0:02:26]} 16. Qxe4 {[%clk 0:02:20]}  Ncxe4 {[%clk 0:02:26]} 17. Be3 {[%clk 0:02:17]}  Be6 {[%clk 0:02:19]} 18. Rfe1 {[%clk 0:02:13]}  Rfe8 {[%clk 0:02:13]} 19. a5 {[%clk 0:02:09]}  Nd5 {[%clk 0:02:04]} 20. Bd4 {[%clk 0:01:58]}  c5 {[%clk 0:02:04]} 21. Be5 {[%clk 0:01:58]}  Bxe5 {[%clk 0:02:05]} 22. Nfxe5 {[%clk 0:01:54]}  Nf4 {[%clk 0:01:50]} 23. Bf3 {[%clk 0:01:54]}  Bxc4 {[%clk 0:01:47]} 24. Nxc4 {[%clk 0:01:36]}  f5 {[%clk 0:01:38]} 25. Rad1 {[%clk 0:01:33]}  Rad8 {[%clk 0:01:22]} 26. Rxd8 {[%clk 0:01:27]}  Rxd8 {[%clk 0:01:23]} 27. Bxe4 {[%clk 0:01:26]}  fxe4 {[%clk 0:01:24]} 28. Rxe4 {[%clk 0:01:25]}  Nd5 {[%clk 0:01:19]} 29. Re6 {[%clk 0:01:14]}  Kf7 {[%clk 0:01:10]} 30. Rd6 {[%clk 0:01:10]}  Ke7 {[%clk 0:01:10]} 31. Rxd8 {[%clk 0:01:08]}  Kxd8 {[%clk 0:01:11]} 32. Nd6 {[%clk 0:00:51]}  b6 {[%clk 0:00:55]} 33. axb6 {[%clk 0:00:52]}  axb6 {[%clk 0:00:56]} 34. Kf1 {[%clk 0:00:52]}  Nf4 {[%clk 0:00:52]} 35. Nc4 {[%clk 0:00:41]}  Kc7 {[%clk 0:00:51]} 36. h4 {[%clk 0:00:30]}  b5 {[%clk 0:00:45]} 37. Ne3 {[%clk 0:00:29]}  g6 {[%clk 0:00:42]} 38. g3 {[%clk 0:00:27]}  Nd3 {[%clk 0:00:43]} 39. Nd1 {[%clk 0:00:24]}  Kd6 {[%clk 0:00:39]} 40. Ke2 {[%clk 0:00:25]}  c4 {[%clk 0:00:35]} 41. b4 {[%clk 0:00:25]}  Ke5 {[%clk 0:00:25]} 42. f3 {[%clk 0:00:22]}  h6 {[%clk 0:00:21]} 43. Nf2 {[%clk 0:00:22]}  Nc1+ {[%clk 0:00:11]} 44. Kd1 {[%clk 0:00:22]}  Nb3 {[%clk 0:00:10]} 45. Ng4+ {[%clk 0:00:23]}  Kf5 {[%clk 0:00:09]} 46. Nxh6+ {[%clk 0:00:23]}  Kf6 {[%clk 0:00:09]} 47. Ng4+ {[%clk 0:00:24]}  Kf5 {[%clk 0:00:10]} 48. Nf2 {[%clk 0:00:23]}  g5 {[%clk 0:00:10]} 49. hxg5 {[%clk 0:00:24]}  Kxg5 {[%clk 0:00:10]} 50. Ne4+ {[%clk 0:00:24]}  Kf5 {[%clk 0:00:10]} 51. Nd6+ {[%clk 0:00:25]} 1-0


[Site "https://www.chess.com"]